Cogmind - Beta 16.1 @@@ ROGUE MODE // 2026.03.27 @ 01:47:01 Player: Godsword Result: Destroyed by Vortex Trap Performance ------------- Evolutions (0) 0 Regions Visited (3) 600 Robots Destroyed (0) 0 Value Destroyed (0) 0 Prototype IDs (6) 120 Alien Tech Used (0) 0 Bonus (800) 800 TOTAL SCORE: 1520 Bonus ------- Registered with UFD 300 Met Optimus in HQ 500 Cogmind --------- Core Integrity 0/250 Matter 290/300 Energy 99/100 System Corruption 3% Temperature Cool (0) Movement Core (50) Location -9/Scraptown Parts ------- > --- POWER (1) -------- (None) > --- PROPULSION (2) --- (None) > --- UTILITY (2) ------ (None) > --- WEAPON (2) ------- (None) > --- INVENTORY (5) ---- Deuterium Engine Scrap Suit ECM Suite DRS Beacon (Ready) Peak State ------------ > --- POWER ------------ Light Ion Engine > --- PROPULSION ------- (None) > --- UTILITY ---------- High-capacity Storage Unit Small Battery > --- WEAPON ----------- Mace Heavy Hammer > --- INVENTORY -------- Deuterium Engine Scrap Suit Cryofiber Web Improved Heat Sink Improved Target Analyzer ECM Suite ECM Suite ECM Suite A0-MCA's Component Scanner Mini Grenade Launcher Heavy Hammer Vortex Trap Vortex Trap Vortex Trap [Rating: 11] Favorites ----------- Power Light Ion Engine Engine Light Ion Engine Propulsion None Utility Small Battery Device ECM Suite Storage Small Battery Weapon Mace Launcher Mini Grenade Launcher Special Weapon CPS Tube Impact Weapon Mace Build | -11 -10 -10 -9 ------- Run | Yrd Mat Sub Scr Slots Evolved . | . . . . Power . | . . . . Propulsion . | . . . . Utility . | . . . . Weapon . | . . . . Parts Attached 10 | . 2 . 8 Power 1 | . . . 1 Engine 1 | . . . 1 Core . | . . . . Reactor . | . . . . Propulsion . | . . . . Treads . | . . . . Leg . | . . . . Wheel . | . . . . Hover . | . . . . Flight . | . . . . Utility 4 | . 2 . 2 Device 2 | . 1 . 1 Storage 2 | . 1 . 1 Processor . | . . . . Hackware . | . . . . Protection . | . . . . Artifact . | . . . . Weapon 5 | . . . 5 Energy Gun . | . . . . Energy Cannon . | . . . . Ballistic Gun . | . . . . Ballistic Cannon . | . . . . Launcher 1 | . . . 1 Special Weapon 2 | . . . 2 Impact Weapon 2 | . . . 2 Slashing Weapon . | . . . . Piercing Weapon . | . . . . Special Melee Weapon . | . . . . Unidentified Prototypes . | . . . . Parts Lost 4 | . . . 4 Power 1 | . . . 1 Propulsion . | . . . . Utility 1 | . . . 1 Weapon 2 | . . . 2 Highest Loss Streak 4 | . . . 4 To Critical Strikes . | . . . . Average Backups 9 | . 1 3 10 Power . | . . . . Propulsion . | . . . . Utility 6 | . 1 2 7 Weapon 1 | . . 1 2 Tool/Special . | . . . . Unused Backups 10 | . . . 10 Power 2 | . . . 2 Propulsion . | . . . . Utility 6 | . . . 6 Weapon 2 | . . . 2 Tool/Special . | . . . . Average Slot Usage (%) 68 | . 17 28 68 Engine 13 | . . . 13 Storage 26 | . 10 14 27 Impact Weapon 25 | . . . 26 Peak Build Rating 11 | . 2 2 11 Average Rating 9 | . 1 2 9 On Entrance 1 | . . 2 2 Avg Prop Armor Cover (%) . | . . . . Naked Turns 4 | . 4 . . Heaviest Build 49 | . 3 3 49 Greatest Support 3 | 3 3 3 3 Greatest Overweight (x) 16 | . . . 16 Average Overweight (x) 8 | . . . 9 Largest Inventory Capacity 20 | 5 5 5 20 Average Capacity 18 | 5 5 5 19 Most Carried 16 | . 3 3 16 Average Carried 12 | . 1 3 13 Final Capacity 5 | 5 5 5 5 Final Carried 5 | . 3 3 5 Class Distribution -------------------- 100% | Mutant Dominant Class ---------------- Mutant | -10/Materials Mutant | -10/Subcaves Mutant | -9/Scraptown Resources | -11 -10 -10 -9 ----------- Run | Yrd Mat Sub Scr Matter Collected 263 | 190 . . 73 Remotely . | . . . . Salvage Created . | . . . . Parts . | . . . . Haulers Intercepted . | . . . . Recyclers Shooed . | . . . . Parts Field Recycled . | . . . . Retrieved Matter . | . . . . Parts Self-Destructed 2 | . . 2 . Prevented . | . . . . Parts Restored . | . . . . Kills | -11 -10 -10 -9 ------- Run | Yrd Mat Sub Scr Combat Hostiles Destroyed . | . . . . Classes Destroyed . | . . . . Best Kill Streak . | . . . . Combat Bots Only . | . . . . Max Kills in Single Turn . | . . . . Gunslinging . | . . . . Exploded . | . . . . Melee . | . . . . Uniques/NPCs Destroyed . | . . . . Combat | -11 -10 -10 -9 -------- Run | Yrd Mat Sub Scr Hostile Shots Fired 26 | . . . 26 Missed 2 | . . . 2 Hits 24 | . . . 24 Projectile 24 | . . . 24 Damage Taken 523 | . 11 . 512 Core 271 | . 2 . 269 Absorbed by Shields . | . . . . Core Remaining (%) 100 | 100 . . . Volleys Fired . | . . . . Largest . | . . . . Hottest . | . . . . Shots Fired . | . . . . Gun . | . . . . Cannon . | . . . . Launcher . | . . . . Special . | . . . . Kinetic . | . . . . Thermal . | . . . . Explosive . | . . . . Electromagnetic . | . . . . Robot Hit Streak . | . . . . Robot Miss Streak . | . . . . Penetration Max . | . . . . Secondary Targets . | . . . . Shots Hit Robots . | . . . . Core Hits 1 | . 1 . . Critical Kills . | . . . . Critical Parts Destroyed . | . . . . Critical Strikes . | . . . . Melee Attacks . | . . . . Impact . | . . . . Slashing . | . . . . Piercing . | . . . . Sneak Attacks . | . . . . Combat Hostiles . | . . . . Follow-up Attacks . | . . . . Damage Inflicted 25 | . 25 . . Guns . | . . . . Cannons . | . . . . Explosions . | . . . . Melee . | . . . . Ramming 25 | . 25 . . Kinetic . | . . . . Thermal . | . . . . Explosive . | . . . . Electromagnetic . | . . . . Impact . | . . . . Slashing . | . . . . Piercing . | . . . . Highest Corruption 4 | . 2 4 3 Average Corruption 3 | . 1 4 2 Corruption Purged . | . . . . Corruption Blocked . | . . . . Overload Shots . | . . . . Overflow Damage . | . . . . Projectiles . | . . . . Explosions . | . . . . Melee . | . . . . Knockbacks . | . . . . Impact . | . . . . Kinetic . | . . . . Secondary . | . . . . Self-Inflicted Damage 11 | . 11 . . Shots . | . . . . Rammed 10 | . 10 . . Targets Rammed 10 | . 10 . . Kicked . | . . . . Crushed . | . . . . Highest Temperature 19 | . . . 19 Average Temperature 11 | . . . 11 Received Heat Transfer 168 | . . . 168 Siege Activations . | . . . . Martial Activations . | . . . . Shielding Activations . | . . . . Robots Disrupted . | . . . . Combat Hostiles . | . . . . Robots Corrupted . | . . . . Combat Hostiles . | . . . . Parts Fried . | . . . . Impact Corruptions . | . . . . Robots Melted . | . . . . Combat Hostiles . | . . . . Parts Melted . | . . . . Heat Transferred . | . . . . Parts Sabotaged . | . . . . Parts Stolen . | . . . . Parts Stripped . | . . . . Power Chain Reactions . | . . . . Alert | -11 -10 -10 -9 ------- Run | Yrd Mat Sub Scr Maximum Alert Level . | . . . . Low Security (%) 100 | 100 100 . . Level 1 . | . . . . Level 2 . | . . . . Level 3 . | . . . . Level 4 . | . . . . Level 5 . | . . . . High Security . | . . . . Max Security . | . . . . Peak Influence . | . . . . Initial . | . . . . Average . | . . . . Influence Increases . | . . . . Influence Decreases . | . . . . Squads Dispatched 1 | . 1 . . Investigation 1 | . 1 . . Extermination . | . . . . Reinforcement . | . . . . Assault . | . . . . Garrison . | . . . . Intercept . | . . . . Searches Triggered . | . . . . Construction Impeded . | . . . . Haulers Reinforced . | . . . . Active Scanning Responses . | . . . . Cargo Convoy Interrupts . | . . . . Stealth | -11 -10 -10 -9 --------- Run | Yrd Mat Sub Scr Distress Signals . | . . . . Communications Jammed . | . . . . Distress Signals . | . . . . Times Spotted 7 | . . . 7 Peak Tracking Total 7 | . . . 7 Tactical Retreats . | . . . . Traps | -11 -10 -10 -9 ------- Run | Yrd Mat Sub Scr Traps Triggered . | . . . . Indirectly . | . . . . Trap Hack Attempts . | . . . . Triggered . | . . . . Disarmed . | . . . . Reprogrammed . | . . . . Reused 1 | . . . 1 Traps Extracted . | . . . . Installed 2 | . . . 2 Triggered . | . . . . Most Traps Carried 3 | . . . 3 Machines | -11 -10 -10 -9 ---------- Run | Yrd Mat Sub Scr Machines Disabled . | . . . . Max in Single Turn . | . . . . Machines Repaired . | . . . . Machines Dismantled . | . . . . Machines Sabotaged . | . . . . Overloaded Fab Kills . | . . . . Hacking | -11 -10 -10 -9 --------- Run | Yrd Mat Sub Scr Machines Accessed 4 | . 1 . 3 Terminals 1 | . 1 . . Fabricators . | . . . . Repair Stations . | . . . . Recycling Units . | . . . . Scanalyzers . | . . . . Garrison Access . | . . . . Total Hacks 24 | . 3 . 21 Successful 23 | . 2 . 21 Failed 1 | . 1 . . Catastrophic . | . . . . Database Lockouts . | . . . . Manual . | . . . . Terminals 3 | . 3 . . Fabricators . | . . . . Repair Stations . | . . . . Recycling Units . | . . . . Scanalyzers . | . . . . Garrison Access . | . . . . Terminal Hacks 23 | . 2 . 21 Record 22 | . 2 . 20 Proto ID Catalog 1 | . . . 1 Fabricator Hacks . | . . . . Repair Station Hacks . | . . . . Recycling Unit Hacks . | . . . . Scanalyzer . | . . . . Garrison Access Hacks . | . . . . Unauthorized Hacks . | . . . . Terminals . | . . . . Fabricators . | . . . . Repair Stations . | . . . . Recycling Units . | . . . . Scanalyzers . | . . . . Garrison Access . | . . . . Data Cores Recovered . | . . . . Used . | . . . . Hacking Detections 1 | . 1 . . Full Trace Events 1 | . 1 . . Feedback Events 1 | . 1 . . Corruption 1 | . 1 . . Feedback Blocked . | . . . . Robot Schematics Acquired . | . . . . Robots Built . | . . . . Authchips . | . . . . Time . | . . . . Total Robot Build Rating . | . . . . Part Schematics Acquired . | . . . . Parts Built . | . . . . Authchips . | . . . . Time . | . . . . Total Part Build Rating . | . . . . Part Studies Acquired . | . . . . Parts Repaired . | . . . . Time . | . . . . Parts Recycled . | . . . . Recycled Matter . | . . . . Retrieved Matter . | . . . . Retrieved Components . | . . . . Parts Scanalyzed . | . . . . Part Schematics Acquired . | . . . . Parts Damaged . | . . . . Bothacking | -11 -10 -10 -9 ------------ Run | Yrd Mat Sub Scr Used RIF Installer . | . . . . Robots Hacked . | . . . . Non-combat . | . . . . Combat . | . . . . Robot Hacks Applied . | . . . . Relay Couplers Released . | . . . . Fabnet Peak Effective % . | . . . . Robots Rewired . | . . . . Allies Hacked . | . . . . Hacks Repelled . | . . . . Allies | -11 -10 -10 -9 -------- Run | Yrd Mat Sub Scr Total Allies . | . . . . Largest Group . | . . . . Highest-Rated Group . | . . . . Highest-Rated Ally . | . . . . Total Orders . | . . . . Ally Attacks . | . . . . Total Damage . | . . . . Kills . | . . . . Allies Corrupted . | . . . . Allies Melted . | . . . . Intel | -11 -10 -10 -9 ------- Run | Yrd Mat Sub Scr Active Infowar (turns) 84 | . 1 . 83 ECM 84 | . 1 . 83 Robot Analysis Total . | . . . . Derelict Logs Recovered . | . . . . Drone Launches . | . . . . Drone Recoveries . | . . . . Exploration | -11 -10 -10 -9 ------------- Run | Yrd Mat Sub Scr Turns Passed 4633 | 12 35 41 4545 Spaces Moved 906 | 23 38 48 797 Core 906 | 23 38 48 797 Treads . | . . . . Legs . | . . . . Wheels . | . . . . Hover . | . . . . Flight . | . . . . Fastest Speed 50 | 50 50 50 50 Average Speed 481 | 50 50 50 540 Slowest Speed 850 | 50 50 50 850 Overloaded Moves . | . . . . Propulsion Burnouts . | . . . . Robots Hopped . | . . . . Potential Cave-ins . | . . . . Cave-ins Triggered . | . . . . Exploration Rate (%) 20 | 3 13 5 62 Regions Visited 3 Branch Regions 2 Pre-discovered Areas . | . . . . Known Exits Taken . | . . . . Unknown Exits Taken 3 | 1 1 1 . Scrap Searched 3 | . . . 3 Spaces Dug . | . . . . Terrain Destroyed . | . . . . Melee . | . . . . Projectile . | . . . . AOE . | . . . . Terrain Rammed . | . . . . Walls Destroyed . | . . . . Machines Disabled . | . . . . Actions | -11 -10 -10 -9 --------- Run | Yrd Mat Sub Scr Total 1173 | 22 52 64 1035 Wait 214 | . . 17 197 Move 904 | 22 38 47 797 Hop . | . . . . Pick Up 17 | . 3 . 14 Fast Attach 9 | . 2 . 7 Attach 3 | . . . 3 Detach 5 | . . . 5 Swap . | . . . . Drop 10 | . . . 10 Fire . | . . . . Melee . | . . . . Ram 9 | . 9 . . Kick . | . . . . Crush . | . . . . Escape Stasis . | . . . . Rewire . | . . . . Trap 2 | . . . 2 Miscellaneous . | . . . . Route ------- -11/Scrapyard -10/Materials (discovered 2 exits: [*Min] / [*Sub]) -10/Subcaves -9/Scraptown (discovered 1 exit: [*Fac]) History --------- Turn | Location | Event 2 | -11/Scrapyard | Met Revision 17 6 | -11/Scrapyard | Discovered new exit (range 12) 13 | -11/Scrapyard | Entered Materials 14 | -10/Materials | Met a group of wandering Federalists 29 | -10/Materials | Discovered new exit (range 14) 37 | -10/Materials | Discovered new exit (range 7) 48 | -10/Materials | Entered Subcaves 48 | -10/Subcaves | Accompanied by 4 allies 49 | -10/Subcaves | Continued accompanying wandering Federalists (4) 49 | -10/Subcaves | Approached by a straggling Scientist 88 | -10/Subcaves | Scientist uncovered a shortcut to Scraptown 89 | -10/Subcaves | Entered Scraptown 89 | -9/Scraptown | System corruption cleaned by C-Scrubber 125 | -9/Scraptown | Visited UFD Registry 125 | -9/Scraptown | Registered with UFD as "Roughforce" 330 | -9/Scraptown | Build established: Mutant 1211 | -9/Scraptown | Visited A0-MCA Data Center 1262 | -9/Scraptown | Given a D+ rating by A0-MCA 1279 | -9/Scraptown | Found A0-MCA's Component Scanner 1654 | -9/Scraptown | Visited Science Guys 1955 | -9/Scraptown | Visited Scrap Suit Storage 1997 | -9/Scraptown | Found Scrap Suit 2143 | -9/Scraptown | Visited Abandonware Association 2313 | -9/Scraptown | Learned abandonware demo "MELTYB.EXE" 2313 | -9/Scraptown | Learned abandonware demo "REBOOT5.EXE" 2457 | -9/Scraptown | Visited Derelict Rescue Squad 2508 | -9/Scraptown | Found DRS Beacon 3147 | -9/Scraptown | Discovered new exit (range 5) 4194 | -9/Scraptown | Met Optimus 4194 | -9/Scraptown | Accepted into 0bPrime 4594 | -9/Scraptown | Civil war broke out across Scraptown 4630 | -9/Scraptown | Core integrity fell below 50% 4634 | -9/Scraptown | Destroyed by Vortex Trap Last Messages --------------- 04627_ Dropped Vortex Trap. 04629_ Sml. Battery destroyed. 04629_ Hvy. Hammer destroyed. 04629_ C4-J4Z(g) suffers critical hit (Destroy). 04629_ C4-J4Z(g) destroyed. 04629_ Dropped Hcp. Storage Unit. 04630_ Installed Vortex Trap. 04631_ Slug penetrates B7-HIC(p). 04631_ B7-HIC(p) destroyed. 04631_ ML-F7M(j) destroyed. 04631_ UB-LNG(E) suffers critical hit (Burn). 04631_ Installed Vortex Trap. 04634_ YT-SHG(p) destroyed. 04634_ LM-56J(g) triggered Vortex Trap. 04634_ A wave of accelerated entropy washes over the area. 04634_ LM-56J(g) destroyed. 04634_ EE-C7H(E) destroyed. 04634_ C-Scrubber disabled. 04634_ Mace destroyed. Map ----- +----------------------------------------------------+ | | | | | | | | | | | | | | | | | | | ?????????????????????????????????????????????????? | | ?????????????????????????????????????????????????? | | ?????????????????????????????????????????????????? | | ?????????????????????????????????????????????????? | | ?????????????????????????????????????????????????? | | ?????????????????????????????????????????????????? | | ?????????????????????????????????????????????????? | | ?????????????????????????????????????????????????? | | ?????????????????????????????????????????????????? | | ?????????????????????????????????????????????????? | | ?????????????????????????????????????????????????? | | ??????????????????????????????#####??????????????? | | ??????????????????????????????#"" #??????????????? | | ##################???####?????# "#??????????????? | | ""##"""##""|##"""#??## ##??? ; <%#??????????????? | | " ##"" ##"" ##!!"#### ##!;;!jj[##?????????????? | | " @E!%!= !!=#?????????????? | | E E [[!= % [[#?????????????? | | ##################### ;#;;;;;;;;#?????????????? | | ????????????????????## ##?## ## ###?????????????? | | ?????????????????????# ##########???????????????? | | ?????????????????????# #""""""""#???????????????? | | ?????????????????????# #" &&" "#???????????????? | | ?????????????????????# #" "#???????????????? | | ?????????????????????# #"" ""#???????????????? | | ?????????????????????# #" "#???????????????? | | ?????????????????????# #"" ""#???????????????? | | ?????????????????????# #" "#???????????????? | | ?????????????????????# #"" ""#???????????????? | | ?????????????????????# # #???????????????? | | ?????????????????????# # #???????????????? | | ???????????????"?????# # #???????????????? | | ???????????????# ????# ## #######???????????????? | | ???????????##### ##### ## #############?????????? | | ????????"""""""" """"" "" "## "#?????????? | | ??????? "## ""#?????????? | | ? ?? "## """" "#?????????? | | ? "## "### "#?????????? | | ? "## "#X ""#?????????? | | ? "### "#?????????? | | """"""??"""""""""""""" "## """" "#?????????? | +----------------------------------------------------+ Best States ------------- Heat Dissipation 25 Energy Generation 10 Energy Capacity 225 Matter Stores 300 Matter Capacity 300 Sight Range 16 Terrain Scan Density 10 ECM Strength 1 Evasion (%) 50 Item Schematics ----------------- None Robot Schematics ------------------ None Fabricated ------------ Nothing Repaired ---------- Nothing Studied --------- None Alien Tech Used ----------------- None Achievements -------------- Nice Directions, Buddy Challenges ------------ None Game ------ Seed painworld Manual? 1 Play Time 00:12:49 Cumulative 26.8 hours Start 2026.03.27 @ 01:34:34 End 2026.03.27 @ 01:47:01 Sessions 1 Manual Loads 0 Difficulty Rogue Special Mode None Game No. 76 Rogue 76 Adventurer 0 Explorer 0 Win Type - Total 2 Types 2/0/0/0/0/0/0/0/0/0 Lore% 33 Gallery% 27 Achievement% 23 Wizard Run 0 Options --------- Layout 1 ASCII 0 Keyboard 0 Movement Arrows Keybinds 0 Fullscreen 1 Font 16/SmallcapsGlow Map View 50x40 Zoom Use 0% Tactical HUD 1 Map Filters NONE Filters NONE Steam SD RUN: 76255f51-fce9-4a5e-babc-ece93f2f395e